bitfinex-derivatives/quotes_SOLF0:USTF0_20240924
["timestamp","ask_amount","ask_price","bid_price","bid_amount"]
[1727180857259,3.3898,147.51,147.48,3.3903]
[1727180858260,2.7192,147.59,147.5,14.67]
[1727180858467,2.7192,147.59,147.53,14.67]
[1727180858961,6.1072,147.59,147.55,3.3887]
[1727180859671,3.3881,147.58,147.55,3.3887]
[1727180859866,2.7192,147.59,147.51,14.67]
[1727180860167,3.3887,147.56,147.51,14.67]
[1727180860965,3.3884,147.57,147.51,14.67]
[1727180861867,3.3886,147.56,147.51,14.67]
[1727180862266,2.7192,147.59,147.51,14.67]
[1727180862468,2.7192,147.59,147.55,14.67]
[1727180862870,3.3883,147.58,147.55,18.0588]
[1727180865083,3.3885,147.57,147.54,3.3889]
[1727180867182,3.3885,147.57,147.53,14.67]
[1727180867577,3.3885,147.57,147.54,3.3888]
[1727180869190,3.3882,147.58,147.55,3.3887]
[1727180869392,3.3882,147.58,147.53,14.67]
[1727180869581,6.1072,147.59,147.56,3.3884]
[1727180870092,2.7192,147.59,147.56,3.3884]
[1727180870487,3.3882,147.58,147.55,18.0586]
[1727180871286,3.3884,147.57,147.55,18.0586]
[1727180871485,1.4339,147.61,147.55,14.67]
[1727180872087,3.388,147.59,147.56,3.3885]
[1727180872289,1.4339,147.61,147.54,14.67]
[1727180872481,1.4339,147.61,147.52,3.3893]
[1727180872682,14.67,147.58,147.49,14.67]
[1727180872891,2.7829,147.57,147.49,14.67]
[1727180873288,2.7829,147.57,147.52,3.3894]
[1727180874088,2.7829,147.57,147.5,14.67]
[1727180874387,2.7829,147.57,147.52,14.67]
[1727180874388,3.3887,147.56,147.52,14.67]
[1727180874589,3.3887,147.56,147.54,3.3889]
[1727180874889,3.3883,147.58,147.54,14.67]
[1727180875094,1.4339,147.61,147.55,3.3886]
[1727180875489,1.4339,147.61,147.52,14.67]
[1727180875688,14.67,147.6,147.53,3.3891]
[1727180876697,14.67,147.6,147.5,14.67]
[1727180877296,3.3891,147.54,147.5,14.67]
[1727180877898,3.3891,147.54,147.51,3.3895]
[1727180878386,3.3891,147.54,147.52,3.3894]
[1727180878894,3.3889,147.55,147.52,3.3894]
[1727180879301,3.3887,147.56,147.52,14.67]
[1727180879689,14.67,147.6,147.52,14.67]
[1727180879894,14.67,147.6,147.5,14.67]
[1727180880700,1.4339,147.61,147.48,14.67]
[1727180880898,14.67,147.57,147.48,14.67]
[1727180881192,2.6948,147.56,147.48,14.67]
[1727180881394,2.6948,147.56,147.5,14.67]
[1727180881991,3.3892,147.54,147.51,3.3895]
[1727180882195,3.3892,147.54,147.5,14.67]
[1727180882395,2.6948,147.56,147.5,14.67]
[1727180882596,3.3889,147.55,147.52,3.3893]
[1727180882802,2.6948,147.56,147.52,3.3893]
[1727180883203,3.3891,147.54,147.52,3.3893]
[1727180884095,3.3893,147.53,147.5,14.67]
[1727180884298,2.6948,147.56,147.48,14.67]
[1727180884799,2.6948,147.56,147.51,3.3896]
[1727180885493,2.6948,147.56,147.49,14.67]
[1727180885694,3.3892,147.54,147.49,14.67]
[1727180885899,14.67,147.6,147.51,14.67]
[1727180886096,17.3709,147.6,147.51,14.67]
[1727180886295,3.3889,147.55,147.51,14.67]
[1727180887599,3.3889,147.55,147.52,3.3893]
[1727180888303,14.67,147.58,147.51,18.0596]
[1727180888801,3.3892,147.54,147.51,18.0596]
[1727180889798,14.67,147.58,147.5,3.3898]
[1727180890109,14.67,147.57,147.49,14.67]
[1727180890800,3.3896,147.52,147.5,3.3899]
[1727180893197,3.3894,147.53,147.5,3.3899]
[1727180893392,3.3894,147.53,147.49,14.67]
[1727180893599,14.67,147.57,147.51,3.3896]
[1727180894298,14.67,147.57,147.5,3.3898]
[1727180894700,3.3894,147.53,147.5,3.3898]
[1727180895500,3.41336046,147.54,147.45,1.4307]
[1727180895806,17.3035,147.53,147.44,16.0912]
[1727180896709,3.39,147.5,147.47,3.3905]
[1727180897295,17.3035,147.53,147.44,16.0912]
[1727180897497,1.3552,147.52,147.44,14.67]
[1727180898103,3.3907,147.47,147.44,3.3913]
[1727180898306,14.67,147.51,147.42,14.67]
[1727180898799,3.3911,147.45,147.43,3.3915]
[1727180899006,3.3911,147.45,147.41,81.38]
[1727180899210,14.67,147.45,147.38,1.4069]
[1727180899503,14.67,147.45,147.36,1.2942]
[1727180899504,18.1461517,147.45,147.36,1.2942]
[1727180900012,3.3922,147.41,147.35,14.67]
[1727180900706,3.3918,147.42,147.37,14.67]
[1727180902307,3.3918,147.42,147.39,3.3925]
[1727180902807,14.67,147.48,147.39,14.67]
[1727180903005,14.67,147.48,147.4,3.3922]
[1727180903307,3.3915,147.44,147.4,3.3922]
[1727180904607,3.3917,147.43,147.4,3.3922]
[1727180904806,3.3917,147.43,147.39,14.67]
[1727180904807,14.67,147.48,147.39,3.3924]
[1727180905313,3.3919,147.42,147.39,3.3924]
[1727180909213,3.3916,147.43,147.4,3.3922]
[1727180910916,3.3918,147.42,147.4,3.3922]
[1727180911117,14.67,147.44,147.33,2.5287]
[1727180911413,14.67,147.42,147.33,15.9723]
[1727180911620,14.67,147.42,147.36,3.3931]
[1727180912311,3.3926,147.39,147.36,3.3931]
[1727180912520,14.67,147.42,147.33,4.6961]
[1727180912818,14.67,147.42,147.33,1.3023]
[1727180913208,14.67,147.42,147.34,3.3935]
[1727180914219,14.67,147.42,147.33,1.3023]
[1727180915016,3.3931,147.37,147.32,14.67]
[1727180915218,14.67,147.4,147.31,92.10965395]
[1727180915423,14.67,147.4,147.3,1.2292]
[1727180915615,3.3932,147.36,147.33,3.3938]
[1727180916213,14.67,147.4,147.32,3.3939]
[1727180917921,3.3935,147.35,147.32,3.3939]
[1727180919515,3.3937,147.34,147.31,3.3942]
[1727180920021,14.67,147.38,147.28,16.1023]
[1727180920729,3.3935,147.35,147.28,16.1023]
[1727180920936,1.4004,147.39,147.32,14.67]
[1727180921118,14.67,147.42,147.32,14.67]
[1727180921321,14.67,147.4,147.32,14.67]
[1727180921820,3.3929,147.38,147.34,3.3935]
[1727180922015,3.3929,147.38,147.32,14.67]
[1727180922215,1.3159,147.41,147.32,14.67]
[1727180922618,1.3159,147.41,147.34,3.3935]
[1727180922825,1.3159,147.41,147.32,14.67]
[1727180923325,1.3159,147.41,147.33,14.67]
[1727180923828,3.3925,147.39,147.36,3.3931]
[1727180924525,3.3927,147.38,147.36,3.3931]
[1727180925225,3.3927,147.38,147.35,3.3934]
[1727180926228,3.3934,147.36,147.33,3.3938]
[1727180926428,14.67,147.38,147.3,14.67]
[1727180927322,3.3932,147.36,147.33,3.3937]
[1727180927628,3.3932,147.36,147.3,14.67]
[1727180927629,14.67,147.38,147.3,14.67]
[1727180928032,3.3934,147.35,147.32,3.3939]
[1727180928331,14.67,147.36,147.28,16.1023]
[1727180928535,3.394,147.33,147.28,16.1023]
[1727180929131,3.394,147.33,147.3,3.3944]
[1727180930534,3.394,147.33,147.31,3.3943]
[1727180930733,14.67,147.36,147.28,14.67]
[1727180930930,14.67,147.35,147.28,3.3949]
[1727180931128,3.3942,147.32,147.26,1.3303]
[1727180931333,3.3942,147.32,147.26,16.0003]
[1727180932030,3.3942,147.32,147.29,3.3948]
[1727180932233,3.3942,147.32,147.26,16.0003]
[1727180932635,3.3939,147.33,147.3,3.3945]
[1727180932831,1.3145,147.35,147.28,14.67]
[1727180933334,3.3938,147.34,147.3,3.3945]
[1727180933737,3.3938,147.34,147.31,3.3942]
[1727180933934,1.3145,147.35,147.26,17.3863]
[1727180934134,15.9845,147.35,147.26,17.3863]
[1727180934430,3.3942,147.32,147.29,3.3946]
[1727180935040,3.394,147.33,147.3,3.3945]
[1727180936037,3.3937,147.34,147.28,14.67]
[1727180936842,3.3937,147.34,147.31,3.3942]
[1727180937041,3.3936,147.35,147.28,14.67]
[1727180937243,1.3495,147.36,147.31,3.3943]
[1727180938147,3.3938,147.34,147.31,3.3943]
[1727180938542,3.3935,147.35,147.28,14.67]
[1727180939144,3.3935,147.35,147.32,3.3939]
[1727180941351,3.44594594,147.34,147.26,1.3303]
[1727180941647,14.67,147.33,147.23,14.67]
[1727180941848,3.3947,147.3,147.27,3.3952]
[1727180942743,3.3945,147.31,147.28,3.395]
[1727180944138,3.3943,147.32,147.29,3.3946]
[1727180944447,1.3251,147.33,147.29,3.3946]
[1727180945550,3.3941,147.32,147.29,3.3946]
[1727180945743,1.3251,147.33,147.25,14.67]
[1727180945948,1.3495,147.36,147.29,14.67]
[1727180946149,3.3936,147.35,147.29,14.67]
[1727180946351,1.3495,147.36,147.31,3.3942]
[1727180946749,3.3938,147.34,147.31,3.3942]
[1727180947748,1.3495,147.36,147.27,14.67]
[1727180948351,1.3495,147.36,147.3,3.3945]
[1727180949554,3.394,147.33,147.3,3.3945]
[1727180951443,3.3942,147.32,147.3,3.3945]
[1727180952646,9.4,147.35,147.31,3.3942]
[1727180953645,3.3937,147.34,147.31,3.3942]
[1727180953957,2.6992,147.37,147.33,9.4]
[1727180954157,1.3969,147.37,147.34,9.4]
[1727180954456,1.3969,147.37,147.33,3.3938]
[1727180954852,3.3934,147.36,147.33,3.3938]
[1727180955660,3.3934,147.36,147.34,3.3936]
[1727180955953,1.3571,147.41,147.35,14.67]
[1727180956145,1.3571,147.41,147.37,3.3928]
[1727180956346,3.3925,147.4,147.37,3.3928]
[1727180957152,1.3571,147.41,147.33,14.67]
[1727180958452,3.3926,147.39,147.33,14.67]
[1727180958757,1.3571,147.41,147.33,14.67]
[1727180958958,3.3924,147.4,147.37,3.3929]
[1727180960761,3.3925,147.39,147.37,3.3929]
[1727180960961,1.3571,147.41,147.33,14.67]
[1727180961455,3.3928,147.38,147.35,3.3933]
[1727180966166,3.3926,147.39,147.36,3.3931]
[1727180968665,3.3928,147.38,147.36,3.3931]
[1727180971168,3.3926,147.39,147.36,3.3931]
[1727180974370,3.3926,147.39,147.36,12.7831]
[1727180976669,12.7824,147.4,147.37,3.3928]
[1727180976873,1.3571,147.41,147.38,9.39]
[1727180977369,3.3923,147.4,147.38,12.7826]
[1727180977574,1.3919,147.42,147.38,9.39]
[1727180977771,10.7819,147.42,147.38,9.39]
[1727180979172,3.3922,147.41,147.38,12.7826]
[1727180981473,3.3923,147.4,147.38,12.7826]
[1727180982274,3.3925,147.39,147.37,3.3929]
[1727180982474,3.3925,147.39,147.36,9.39]
[1727180982973,3.3925,147.39,147.36,12.783]
[1727180987575,3.3925,147.39,147.37,3.3929]
[1727180988273,3.3928,147.38,147.35,3.3932]
[1727180988681,3.3933,147.36,147.33,3.3937]
[1727180988978,9.39,147.35,147.28,7.37569157]
[1727180989179,9.39,147.35,147.31,9.39]
[1727180989584,3.3937,147.34,147.32,3.394]
[1727180990077,12.7835,147.35,147.32,3.394]
[1727180990675,9.39,147.33,147.27,4.66192988]
[1727180990873,9.39,147.33,147.28,9.39]
[1727180991180,12.784,147.33,147.3,3.3944]
[1727180991678,3.394,147.33,147.3,12.7844]
[1727180992882,3.3941,147.32,147.29,3.3947]
[1727180993082,3.3941,147.32,147.28,9.39]
[1727180993784,3.3941,147.32,147.29,3.3946]
[1727180995887,3.3939,147.33,147.3,3.3945]
[1727180996081,3.3939,147.33,147.29,9.39]
[1727180996679,3.3939,147.33,147.3,3.3945]
[1727180997886,9.4895,147.41,147.32,9.39]
[1727180998079,9.39,147.38,147.33,9.39]
[1727180998275,9.39,147.39,147.34,9.39]
[1727180998481,3.3929,147.38,147.35,3.3933]
[1727181001291,9.39,147.38,147.28,4.0147]
[1727181001587,9.39,147.38,147.33,9.39]
[1727181001981,12.7828,147.38,147.35,3.3933]
[1727181003285,2.7053,147.41,147.35,9.39]
[1727181003483,2.7053,147.41,147.37,9.39]
[1727181003988,12.0953,147.41,147.37,9.39]
[1727181004282,12.0953,147.41,147.36,9.39]
[1727181005286,9.39,147.39,147.29,6.47979494]
[1727181005486,9.39,147.39,147.28,4.0147]
[1727181005487,9.39,147.39,147.34,9.39]
[1727181005884,12.7826,147.39,147.36,3.3931]
[1727181007292,12.7823,147.4,147.37,3.3929]
[1727181007991,3.3926,147.39,147.36,3.393]
[1727181008189,9.39,147.39,147.35,9.39]
[1727181008593,3.3928,147.38,147.35,3.3933]
[1727181008892,9.39,147.39,147.35,9.39]
[1727181009090,1.3919,147.42,147.36,9.39]
[1727181009292,2.788,147.46,147.39,9.39]
[1727181009595,9.39,147.44,147.41,3.3919]
[1727181009983,12.7305689,147.45,147.41,3.3919]
[1727181010183,3.3914,147.44,147.4,9.39]
[1727181010394,9.39,147.44,147.39,9.39]
[1727181010689,12.7818,147.43,147.38,9.39]
[1727181010987,9.39,147.42,147.38,9.39]
[1727181011585,9.39,147.42,147.39,3.3923]
[1727181011586,12.7818,147.42,147.39,3.3923]
[1727181012589,9.39,147.43,147.38,9.39]
[1727181012795,9.39,147.44,147.39,9.39]
[1727181012996,9.39,147.45,147.4,9.39]
[1727181013893,3.3915,147.44,147.41,3.392]
[1727181014090,9.39,147.43,147.39,9.39]
[1727181014593,12.7817,147.43,147.4,3.3922]
[1727181014794,9.39,147.45,147.4,9.39]
[1727181014995,12.7813,147.45,147.4,9.39]
[1727181015188,12.178,147.46,147.41,9.39]
[1727181015384,20.39,147.56,147.45,9.39]
[1727181015588,9.39,147.51,147.47,3.3906]
[1727181015791,10.7274,147.52,147.47,9.39]
[1727181016591,10.7274,147.52,147.47,12.7805]
[1727181016899,10.7274,147.52,147.47,9.39]
[1727181017801,71.01021243,147.55,147.49,9.39]
[1727181017995,71.01021243,147.55,147.5,9.39]
[1727181018397,3.3894,147.53,147.5,9.39]
[1727181019300,81.46,147.62,147.52,9.39]
[1727181019604,9.39,147.54,147.49,9.39]
[1727181019793,9.39,147.54,147.5,3.3899]
[1727181019993,9.39,147.55,147.5,9.39]
[1727181020401,9.39,147.55,147.51,9.39]
[1727181020609,12.779,147.55,147.51,12.7797]
[1727181021300,3.3891,147.54,147.51,3.3897]
[1727181021497,3.3891,147.54,147.45,92.03623692]
[1727181021498,9.39,147.54,147.49,9.39]
[1727181022102,3.389,147.54,147.49,9.39]
[1727181022403,12.779,147.54,147.5,9.39]
[1727181023496,3.3893,147.53,147.45,92.03623692]
[1727181023697,3.3893,147.53,147.49,9.39]
[1727181023898,3.3896,147.52,147.49,12.78]
[1727181024092,9.39,147.54,147.49,9.39]
[1727181024798,3.3893,147.53,147.5,3.3899]
[1727181025201,3.3893,147.53,147.5,12.7799]
[1727181025500,9.39,147.54,147.5,9.39]
[1727181027404,9.39,147.54,147.49,9.39]
[1727181027598,3.3895,147.52,147.49,12.7802]
[1727181027798,9.39,147.54,147.49,12.7802]
[1727181028602,3.3894,147.53,147.49,12.7802]
[1727181028805,3.3894,147.53,147.5,3.3899]
[1727181029106,12.7794,147.53,147.5,3.3899]
[1727181029405,3.3894,147.53,147.5,3.3899]
[1727181032901,3.3894,147.53,147.49,9.39]
[1727181032902,3.389,147.55,147.51,3.3895]
[1727181033108,58.86902349,147.59,147.51,3.3895]
[1727181033109,9.39,147.54,147.51,3.3895]
[1727181033406,3.36950403,147.57,147.51,9.39]
[1727181033595,3.3886,147.56,147.53,3.3892]
[1727181033804,9.39,147.56,147.53,3.3892]
[1727181034400,12.7787,147.56,147.53,3.3892]
[1727181035613,3.3888,147.55,147.53,3.3892]
[1727181036609,3.3888,147.55,147.52,3.3894]
[1727181039106,3.3887,147.56,147.53,3.3891]
[1727181039306,58.86902349,147.59,147.54,9.39]
[1727181039514,9.39,147.58,147.54,9.39]
[1727181039710,4.0686,147.61,147.54,9.39]
[1727181039910,9.39,147.6,147.55,9.39]
[1727181040717,3.388,147.59,147.56,3.3884]
[1727181041413,3.3881,147.58,147.55,12.7787]
[1727181042310,7.39039946,147.61,147.46,3.8457]
[1727181042507,9.39,147.56,147.51,9.39]
[1727181043109,12.7788,147.56,147.53,3.3891]
[1727181043310,3.3888,147.56,147.53,3.3891]
[1727181043608,9.39,147.58,147.54,9.39]
[1727181044207,9.39,147.59,147.54,9.39]
[1727181044409,3.3883,147.58,147.55,3.3888]
[1727181044713,9.39,147.58,147.55,3.3888]
[1727181045809,3.3884,147.57,147.55,3.3888]
[1727181046712,12.7782,147.58,147.55,3.3888]
[1727181047618,3.3883,147.57,147.54,12.7789]
[1727181048915,3.3886,147.56,147.53,3.3891]
[1727181049314,12.7784,147.57,147.54,3.3889]
[1727181049518,9.39,147.57,147.54,3.3889]
[1727181049814,9.39,147.59,147.54,12.7789]
[1727181050415,3.3883,147.58,147.54,12.7789]
[1727181051617,1.4278,147.6,147.55,9.39]
[1727181051814,10.8178,147.6,147.55,9.39]
[1727181052317,3.3882,147.58,147.55,12.7786]
[1727181053512,3.3882,147.58,147.56,3.3886]
[1727181053712,3.388,147.59,147.56,3.3886]
[1727181053908,3.4087075,147.64,147.57,9.39]
[1727181054114,4.0447,147.68,147.59,9.39]
[1727181054313,3.3873,147.62,147.59,9.39]
[1727181054510,3.3873,147.62,147.59,12.7778]
[1727181054920,3.387,147.63,147.59,9.39]
[1727181055411,9.39,147.65,147.61,9.39]
[1727181055814,7.3574592,147.68,147.63,9.39]
[1727181056012,7.3574592,147.68,147.55,2.6803]
[1727181056013,3.3859,147.68,147.64,9.39]
[1727181056216,291.0,147.77,147.55,2.6803]
[1727181056217,9.39,147.7,147.65,12.7764]
[1727181056622,3.3858,147.69,147.65,12.7764]
[1727181056919,3.3858,147.69,147.66,3.3863]
[1727181057119,3.3858,147.68,147.65,9.39]
[1727181058923,3.3858,147.68,147.65,12.7764]
[1727181059124,3.3858,147.68,147.65,9.39]
[1727181059313,3.3862,147.67,147.55,84.0403]
[1727181059620,3.3862,147.67,147.63,9.39]
[1727181060024,3.3862,147.67,147.63,12.7768]
[1727181060227,9.39,147.66,147.62,9.39]
[1727181060618,9.39,147.66,147.62,12.777]
[1727181060831,9.39,147.65,147.61,9.39]
[1727181061330,3.3866,147.65,147.61,12.7772]
[1727181061624,3.3866,147.65,147.62,9.39]
[1727181062217,9.39,147.63,147.55,84.0403]
[1727181062417,9.39,147.61,147.55,84.0403]
[1727181062717,9.39,147.61,147.56,9.39]
[1727181062919,3.3877,147.6,147.56,9.39]
[1727181063519,3.3877,147.6,147.57,3.3882]
[1727181063923,3.3879,147.59,147.57,3.3882]
[1727181064124,9.39,147.61,147.57,3.3882]
[1727181064918,3.3878,147.6,147.57,3.3882]
[1727181065124,3.3878,147.6,147.58,3.3881]
[1727181065524,3.3878,147.6,147.58,12.7781]
[1727181066231,3.3875,147.61,147.59,9.39]
[1727181066530,3.3875,147.61,147.59,12.7778]
[1727181066831,9.39,147.65,147.6,9.39]
[1727181067727,1.4104,147.66,147.62,9.39]
[1727181067920,1.3165,147.67,147.64,9.39]
[1727181068119,58.91916659,147.73,147.65,9.39]
[1727181068120,9.39,147.7,147.65,9.39]
[1727181068527,3.3861,147.67,147.65,9.39]
[1727181069130,9.39,147.66,147.57,1.2262]
[1727181069329,9.39,147.65,147.6,9.39]
[1727181069836,3.3867,147.65,147.62,3.3872]
[1727181070335,3.3863,147.66,147.63,3.3868]
[1727181070635,14.63,147.68,147.59,14.63]
[1727181071138,14.63,147.68,147.61,14.63]
[1727181071343,3.3864,147.66,147.63,3.3868]
[1727181071838,3.3864,147.66,147.61,14.63]
[1727181072437,3.3864,147.66,147.63,3.3868]
[1727181072833,3.3869,147.64,147.59,14.63]
[1727181073537,3.3869,147.64,147.61,3.3873]
[1727181074236,14.63,147.67,147.57,14.63]
[1727181074740,14.63,147.65,147.55,16.0139]
[1727181075341,14.63,147.65,147.57,14.63]
[1727181075945,3.3873,147.62,147.59,3.3877]
[1727181076643,4.0593,147.66,147.59,14.63]
[1727181077348,3.3869,147.64,147.59,14.63]
[1727181078045,3.3869,147.64,147.61,3.3873]
[1727181078542,3.387,147.63,147.57,14.63]
[1727181078748,3.387,147.63,147.6,3.3875]
[1727181081145,3.3868,147.64,147.57,14.63]
[1727181082252,3.3866,147.65,147.59,14.63]
[1727181082951,14.63,147.71,147.6,14.63]
[1727181083143,2.8183,147.71,147.64,14.63]
[1727181083347,2.8183,147.71,147.69,3.3854]
[1727181083550,2.8183,147.71,147.64,14.63]
[1727181083950,3.3854,147.7,147.67,3.3859]
[1727181084154,2.8183,147.71,147.64,14.63]
[1727181084853,3.3858,147.69,147.66,3.3861]
[1727181085757,3.3858,147.69,147.61,2.755]
[1727181085758,14.63,147.69,147.61,1.3617]
[1727181085959,14.63,147.69,147.6,14.63]
[1727181086457,3.3864,147.66,147.63,3.3868]
[1727181086849,3.3861,147.67,147.64,3.3867]
[1727181088458,14.63,147.69,147.6,14.63]
[1727181088651,2.8183,147.71,147.58,14.63]
[1727181088652,14.63,147.67,147.58,14.63]
[1727181089057,14.63,147.69,147.6,14.63]
[1727181089654,2.8183,147.71,147.64,14.63]
[1727181090754,3.3855,147.7,147.67,3.3859]
[1727181091057,14.63,147.75,147.66,14.63]
[1727181091258,3.385,147.72,147.69,3.3855]
[1727181091459,14.63,147.75,147.66,14.63]
[1727181091855,14.63,147.75,147.68,3.3857]
[1727181092449,3.3852,147.71,147.68,3.3857]
[1727181093257,3.385,147.72,147.69,3.3856]
[1727181094157,14.63,147.75,147.64,14.63]
[1727181094865,3.3855,147.7,147.67,3.3859]
[1727181095559,3.3856,147.69,147.67,3.3859]
[1727181095763,3.3856,147.69,147.66,3.3862]
[1727181096656,3.3859,147.68,147.66,3.3862]
[1727181096962,3.3859,147.68,147.62,107.8556646]
[1727181097264,3.3859,147.68,147.65,3.3863]
[1727181097762,7.546797,147.77,147.67,14.63]
[1727181097955,7.546797,147.77,147.69,14.63]
[1727181098152,7.546797,147.77,147.62,93.2256646]
[1727181098351,7.546797,147.77,147.65,14.63]
[1727181098352,14.63,147.75,147.65,14.63]
[1727181098552,3.3851,147.72,147.67,14.63]
[1727181099259,3.3851,147.72,147.69,3.3854]
[1727181099460,3.3851,147.72,147.67,14.63]
[1727181099861,3.3848,147.73,147.67,14.63]
[1727181100361,3.3848,147.73,147.7,3.3852]
[1727181100559,4.0957,147.77,147.69,14.63]
[1727181101062,3.3845,147.74,147.71,3.385]
[1727181101269,14.63,147.75,147.67,14.63]
[1727181101655,3.3848,147.73,147.7,3.3851]
[1727181102261,20.289,147.88,147.72,14.63]
[1727181102465,1.3526,147.82,147.72,14.63]
[1727181102666,19.35510111,147.82,147.72,14.63]
[1727181102965,19.35510111,147.82,147.75,3.3841]
[1727181103163,14.63,147.8,147.72,14.63]
[1727181103361,3.3836,147.78,147.75,3.3842]
[1727181103666,19.35510111,147.82,147.75,3.3842]
[1727181103959,1.3526,147.82,147.76,3.3838]
[1727181104165,1.3526,147.82,147.73,14.63]
[1727181104666,3.3831,147.8,147.77,3.3837]
[1727181105060,3.383,147.81,147.78,3.3835]
[1727181105465,1.3526,147.82,147.73,14.63]
[1727181105661,3.3831,147.8,147.73,14.63]
[1727181106159,3.3831,147.8,147.76,3.3838]
[1727181108666,3.3831,147.8,147.77,3.3837]
[1727181109161,3.383,147.81,147.77,3.3837]
[1727181109363,1.3526,147.82,147.77,3.3837]
[1727181109562,1.3526,147.82,147.77,3.3835]
[1727181109855,1.3526,147.82,147.73,14.63]
[1727181110062,1.3526,147.82,147.74,1.4135]
[1727181110256,3.383,147.81,147.74,1.4135]
[1727181110768,3.383,147.81,147.77,3.3836]
[1727181111467,3.3831,147.8,147.77,3.3836]
[1727181115871,3.3831,147.8,147.78,3.3835]
[1727181116067,14.63,147.81,147.73,14.63]
[1727181116268,14.63,147.77,147.69,1.3537]
[1727181116576,14.63,147.79,147.69,15.9837]
[1727181116773,14.63,147.79,147.71,14.63]
[1727181117074,14.63,147.81,147.75,3.3841]
[1727181117969,3.3837,147.78,147.75,3.3841]
[1727181118174,14.63,147.79,147.74,3.3844]
[1727181118374,3.3836,147.78,147.71,14.63]
[1727181118767,14.63,147.79,147.71,14.63]
[1727181119379,14.63,147.79,147.74,3.3844]
[1727181119773,3.3839,147.77,147.74,3.3844]
[1727181120896,3.3841,147.76,147.74,3.3844]
[1727181121180,14.63,147.79,147.7,14.63]
[1727181121373,3.3841,147.76,147.7,14.63]
[1727181121575,3.3841,147.76,147.73,3.3847]
[1727181121876,3.3847,147.73,147.68,16.0641]
[1727181122080,3.3847,147.73,147.7,3.3852]
[1727181122373,3.3843,147.75,147.68,16.0641]
[1727181122579,3.3843,147.75,147.72,3.3848]
[1727181122871,3.3843,147.75,147.68,16.0641]
[1727181123078,14.63,147.78,147.74,3.3843]
[1727181123470,3.3839,147.77,147.74,3.3843]
[1727181124279,3.3836,147.78,147.75,3.3841]
[1727181124477,3.3836,147.78,147.68,1.4341]
[1727181124478,15.9826,147.82,147.73,14.63]
[1727181124876,3.3834,147.79,147.76,3.3838]
[1727181126577,3.3834,147.79,147.73,14.63]
[1727181126789,3.3832,147.8,147.73,14.63]
[1727181127282,3.3834,147.79,147.76,3.3839]
[1727181129779,3.3835,147.78,147.76,3.3839]
[1727181129975,3.3835,147.78,147.75,3.3841]
[1727181130180,3.3839,147.77,147.71,14.63]
[1727181130687,3.3835,147.78,147.71,14.63]
[1727181131185,3.383,147.81,147.75,14.63]
[1727181131381,1.3526,147.82,147.75,14.63]
[1727181131579,1.3526,147.82,147.77,3.3836]